[Event "Susha Chess Blitz 2022"]
[Site "Shusha"]
[Date "2022.09.24"]
[Round "1"]
[White "Mamedyarov, Shakhriyar"]
[Black "Guseinov, Gadir"]
[Result "1-0"]
[ECO "C11"]
[WhiteElo "2757"]
[BlackElo "2661"]
[Annotator "TA"]
[PlyCount "81"]
[EventDate "2022.09.24"]
[EventType "tourn"]
[EventCountry "AZE"]
[SourceTitle "playchess.com"]
[Source "ChessBase"]
[SourceQuality "1"]
[TimeControl "180+2"]

{[%evp 19,81,25,42,51,67,73,66,80,85,75,108,108,152,133,131,130,133,131,131,115,126,112,110,106,123,119,164,132,301,298,328,331,444,404,532,518,519,417,406,0,527,535,546,541,550,533,598,601,630,627,640,619,820,797,1100,1033,29997,881,1391,1285,1357,1319,29987,29988]} 1. d4 {[%emt 0:00:00]} Nf6 {[%emt 0:00:03]} 2. Nc3 {[%emt 0:00:01]} d5 {[%emt 0:00:03]} 3. Bg5 {[%emt 0:00:02]} e6 {[%emt 0:00:15]} 4. e4 {[%emt 0:00:03]} dxe4 {[%emt 0:00:03]} 5. Nxe4 {[%emt 0:00:01]} Nbd7 {[%emt 0:00:03][%cal Bb8d7,Bd7f6,Bf6d5][%mdl 32]} 6. Nf3 {[%emt 0:00:03]} Be7 {[%emt 0:00:03]} 7. Nxf6+ {[%emt 0:00:02]} Nxf6 {[%emt 0:00:02]} 8. Bd3 {[%emt 0:00:03]} c5 {[%emt 0:00:03]} 9. dxc5 {[%emt 0:00:02]} Qa5+ {[%emt 0:00:04]} 10. c3 {[%emt 0:00:02]} Qxc5 {[%emt 0:00:01]} 11. Qe2 $1 {[%emt 0:00:03] 11.Qe2 is better than 11.0-0. C10: French with 3 Nc3: Unusual Black 3rd moves and 3...dxe4.} Nd5 {[%emt 0:00:27]} 12. Bb5+ {[%emt 0:00:10]} Kf8 {[%emt 0:00:01] [#]} 13. Bxe7+ $146 {[%emt 0:00:07] White is slightly better.} ({Predecessor:} 13. Bd2 a6 14. Bd3 Bd7 15. Ne5 Be8 16. f4 b5 17. a3 g6 18. O-O-O b4 19. axb4 Nxb4 {1-0 (63) Espineira Gonzalez,D (2362)-Florez Rodriguez,D (2081) Pontevedra 2019}) 13... Qxe7 {[%emt 0:00:08]} 14. O-O-O {[%emt 0:00:09]} a6 {[%emt 0:00:03]} 15. Bc4 {[%emt 0:00:03] White is more active.} Bd7 {[%emt 0:00:39]} 16. Bxd5 {[%emt 0:00:06]} exd5 {[%emt 0:00:01]} 17. Qxe7+ {[%emt 0:00:02]} Kxe7 {[%emt 0:00:02]} 18. Rxd5 {[%emt 0:00:01]} Be6 {[%emt 0:00:08]} 19. Re5 {[%emt 0:00:02]} Kf6 {[%emt 0:00:01]} 20. b3 {[%emt 0:00:04]} Rac8 {[%emt 0:00:03]} 21. Re3 {[%emt 0:00:05]} b5 {[%emt 0:00:10]} 22. Rd1 {[%emt 0:00:04]} Rc5 {[%emt 0:00:11]} 23. Nd4 {[%emt 0:00:05]} Bd5 $2 {[%emt 0:00:06]} (23... Rhc8 $16 {was worth a try.}) 24. b4 $18 {[%emt 0:00:04]} Rc4 {[%emt 0:00:07] [#]} 25. Nxb5 $1 {[%emt 0:00:04][%mdl 512]} Bxg2 {[%emt 0:00:05]} (25... Be6 26. Nd6) 26. Rd6+ {[%emt 0:00:06]} Kf5 {[%emt 0:00:06]} 27. Nd4+ {[%emt 0:00:30]} Kf4 {[%emt 0:00:03]} 28. Ne2+ {[%emt 0:00:03]} Kf5 {[%emt 0:00:03]} 29. Nd4+ {[%emt 0:00:05]} Kf4 $1 {[%emt 0:00:01]} 30. Rxa6 {[%emt 0:00:01]} Rd8 {[%emt 0:00:23] [#]} 31. Ra7 $1 {[%emt 0:00:08]} Bd5 {[%emt 0:00:13]} 32. a4 {[%emt 0:00:08][%cal Ba2a4,Ba4a5,Ba5a6,Ba6a7][%mdl 32]} h5 {[%emt 0:00:12]} 33. a5 {[%emt 0:00:05]} h4 {[%emt 0:00:01]} 34. Kd2 {[%emt 0:00:09]} g5 {[%emt 0:00:01]} 35. a6 {[%emt 0:00:15]} g4 {[%emt 0:00:02]} 36. Rae7 {[%emt 0:00:17]} Rd6 {[%emt 0:00:12]} 37. a7 {[%emt 0:00:09]} Rc8 {[%emt 0:00:01]} 38. b5 {[%emt 0:00:07]} (38. R7e5 $142 g3 39. h3 gxf2 40. Rf5#) 38... f5 {[%emt 0:00:03]} 39. Re8 {[%emt 0:00:14]} Rdd8 {[%emt 0:00:01]} 40. R8e5 {[%emt 0:00:05][%csl Gd4][%cal Re5f5]} Be4 {[#]} 41. R3xe4+ $1 {Black did not feel at home in the position after the opening.  Weighted Error Value: White=0.27 (precise) /Black=0.28 (precise)} 1-0

[Event "Susha Chess Blitz 2022"]
[Site "Shusha"]
[Date "2022.09.24"]
[Round "1"]
[White "Radjabov, Teimour"]
[Black "Maghsoodloo, Parham"]
[Result "1-0"]
[ECO "E10"]
[WhiteElo "2747"]
[BlackElo "2721"]
[Annotator "TA"]
[PlyCount "95"]
[EventDate "2022.09.24"]
[EventType "tourn"]
[EventCountry "AZE"]
[SourceTitle "playchess.com"]
[Source "ChessBase"]
[SourceQuality "1"]
[TimeControl "180+2"]

{[%evp 9,95,21,10,18,18,13,64,22,18,18,11,10,21,9,31,18,27,14,50,34,44,44,61,12,23,0,0,0,0,-14,0,-18,36,35,39,12,22,0,0,0,1,0,1,-50,0,0,0,0,0,-75,-75,-112,-32,-26,0,-89,-37,-35,-43,-33,-25,-252,9,15,11,15,100,100,101,100,100,100,100,100,164,163,152,147,129,81,12835,12835,12836,12836,12837,12837,12831,12833]} 1. d4 {[%emt 0:00:00]} Nf6 {[%emt 0:00:01]} 2. c4 {[%emt 0:00:02]} e6 {[%emt 0:00:02]} 3. Nf3 {[%emt 0:00:01]} h6 {[%emt 0:00:01]} 4. Nc3 {[%emt 0:00:02]} Bb4 {[%emt 0:00:01]} 5. Bd2 {[%emt 0:00:03]} b6 {[%emt 0:00:47]} 6. g3 {[%emt 0:00:13] E10: Blumenfeld Gambit.} Bb7 {[%emt 0:00:05]} 7. Bg2 {[%emt 0:00:01] [#]} c5 $146 {[%emt 0:00:02]} ({Better is} 7... O-O $11) ({Predecessor:} 7... O-O 8. O-O a5 9. a3 Bxc3 10. Bxc3 d6 11. d5 Ne4 12. Be1 exd5 13. cxd5 Re8 {1-0 (43) Sanchez Rodenas,J (2325)-Otspere,U (2209) ICCF email 2013}) 8. dxc5 {[%emt 0:00:27] White is slightly better.} (8. d5 $5) 8... Bxc5 {[%emt 0:00:13]} 9. O-O {[%emt 0:00:02][%cal Oe2e4]} O-O {[%emt 0:00:02]} 10. Rc1 {[%emt 0:00:01]} d5 {[%emt 0:00:41]} 11. Ne5 {[%emt 0:00:09]} Qe7 {[%emt 0:00:03]} 12. cxd5 {[%emt 0:00:14]} exd5 {[%emt 0:00:02]} 13. Nd3 {[%emt 0:00:02][%cal Ob2b4]} Nbd7 {[%emt 0:00:17]} 14. b4 {[%emt 0:00:13]} Bd6 {[%emt 0:00:03]} 15. Nb5 {[%emt 0:00:01]} Rfc8 {[%emt 0:00:26]} 16. Re1 {[%emt 0:00:14]} (16. Rxc8+ $14 Rxc8 17. Nxd6 Qxd6 18. Qa4) 16... Ne4 $11 {[%emt 0:00:08]} 17. Nxd6 {[%emt 0:00:25]} Qxd6 {[%emt 0:00:02]} 18. Be3 {[%emt 0:00:07]} d4 {[%emt 0:00:10]} 19. Bf4 {[%emt 0:00:17] A strong pair of Bishops.} Qe7 {[%emt 0:00:01]} 20. Qb3 {[%emt 0:00:39]} Ndf6 {[%emt 0:00:19]} (20... g5 $11 21. Bc7 Nf8) 21. Rxc8+ $14 {[%emt 0:00:17]} Rxc8 {[%emt 0:00:01]} 22. Be5 {[%emt 0:00:01]} Rd8 {[%emt 0:00:12]} 23. Bxf6 {[%emt 0:00:09]} Nxf6 {[%emt 0:00:05]} 24. Bxb7 {[%emt 0:00:01]} Qxb7 {[%emt 0:00:01]} 25. b5 {[%emt 0:00:01]} Ne4 {[%emt 0:00:01]} 26. Qc4 {[%emt 0:00:07]} (26. Ne5 $11) 26... Ng5 {[%emt 0:00:04]} (26... Qc8 $15 27. Qb4 Nc3) 27. Qc6 $11 {[%emt 0:00:02]} Qe7 {[%emt 0:00:02]} 28. h4 {[%emt 0:00:01]} Ne4 {[%emt 0:00:01]} 29. Nf4 {[%emt 0:00:02]} (29. a4 $11 {keeps the balance.}) 29... Nc3 $17 {[%emt 0:00:01]} 30. Kg2 {[%emt 0:00:01]} Rd6 {[%emt 0:00:02]} ({Black should play} 30... Nxa2 $17 31. Ra1 Nc3) 31. Qc8+ {[%emt 0:00:01]} Rd8 {[%emt 0:00:01]} 32. Qc4 {[%emt 0:00:01]} (32. Qc6 $11) 32... Qc5 {[%emt 0:00:03]} (32... g5 $17 33. hxg5 hxg5) 33. Qxc5 $15 {[%emt 0:00:06]} bxc5 {[%emt 0:00:00][%mdl 4096] Endgame KRN-KRN} 34. Nd3 $1 {[%emt 0:00:01]} c4 {[%emt 0:00:03]} 35. Ne5 {[%emt 0:00:00]} (35. Nb2 $1 $11 {and White has nothing to worry.}) 35... Rc8 $2 (35... d3 $19 {White must now prevent ...d2.} 36. Nxc4 d2 37. Nxd2 Rxd2) 36. Nc6 $11 {[%emt 0:00:00]} Kf8 {[%emt 0:00:08] Inhibits Ne7. Threatens to win with ...d3.} 37. Nxd4 Nxa2 {[%emt 0:00:01]} (37... Rc5 $11) 38. Ra1 $16 {[%emt 0:00:02]} Nb4 {[%emt 0:00:01]} 39. Ra4 {[%emt 0:00:02]} Nd5 {[%emt 0:00:03]} 40. Rxa7 {[%emt 0:00:01] And now e4 would win.} c3 {[%emt 0:00:01]} 41. e4 {[%emt 0:00:01]} Nb4 {[%emt 0:00:04] [#]} (41... Nf6 $16 {is a better defense.}) 42. b6 $1 $18 {[%emt 0:00:01] Hoping for b7.} Rb8 {[%emt 0:00:01]} 43. Rc7 {[%emt 0:00:06] Strongly threatening b7.} c2 {[%emt 0:00:02]} 44. b7 {[%emt 0:00:02] White has more active pieces.} (44. Nxc2 $142 Rxb6 45. Ne3) 44... Ke8 $2 {[%emt 0:00:01][%mdl 8192]} (44... Rxb7 $16 45. Rc3 (45. Rxb7 c1=Q $11) (45. Rc8+ Ke7 $16) 45... Ke7 46. Nxc2 Nxc2) 45. Rc8+ {[%emt 0:00:02] White is clearly winning.} Kd7 {[%emt 0:00:01]} 46. Rxb8 {[%emt 0:00:01] Ra8 would kill now.} c1=Q {[%emt 0:00:04] [#]} 47. Rd8+ $3 {[%emt 0:00:01][%mdl 576] Decoy, Clearance, Promotion} Kxd8 {[%emt 0:00:03]} 48. b8=Q+ {[%emt 0:00:02] Weighted Error Value: White=0.23 (precise) /Black=0.32} 1-0

[Event "Susha Chess Blitz 2022"]
[Site "Shusha"]
[Date "2022.09.24"]
[Round "1"]
[White "Kasimdzhanov, Rustam"]
[Black "Mamedov, Rauf"]
[Result "1/2-1/2"]
[ECO "B50"]
[WhiteElo "2670"]
[BlackElo "2646"]
[Annotator "TA"]
[PlyCount "113"]
[EventDate "2022.09.24"]
[EventType "tourn"]
[EventCountry "AZE"]
[SourceTitle "playchess.com"]
[Source "ChessBase"]
[SourceQuality "1"]
[TimeControl "180+2"]

{[%evp 11,113,0,0,-3,0,0,14,27,31,37,29,14,22,24,4,17,17,0,0,-21,0,-13,10,-45,-44,-59,-50,-48,-48,-62,-50,-60,-44,-47,-54,-55,-21,-12,-22,-29,0,-25,0,0,0,-51,-39,-48,-45,-49,-44,-44,-41,-49,-30,-149,-149,-138,-123,-104,-53,-145,-60,-48,-8,-8,-8,-8,-8,-8,-8,-8,-8,-8,-8,-8,-8,-8,-8,-8,-8,-8,-8,-8,-8,-8,-8,-8,-8,-8,-8,-8,-8,-8,-8,-8,-8,-8,-8,-8,-8,-8,-8,-8]} 1. e4 {[%emt 0:00:01]} c5 {[%emt 0:00:01]} 2. Nf3 {[%emt 0:00:01]} d6 {[%emt 0:00:01]} 3. c3 {[%emt 0:00:03][%cal Bc2c3,Bc3d4,Bd4d5][%mdl 32]} Nf6 {[%emt 0:00:01]} 4. Be2 {[%emt 0:00:01]} g6 {[%emt 0:00:05]} 5. O-O {[%emt 0:00:02]} Bg7 {[%emt 0:00:01]} 6. Bb5+ {[%emt 0:00:01]} Nc6 {[%emt 0:00:07]} 7. d4 {[%emt 0:00:06] B50: Sicilian: 2...d6, Miscellaneous.} cxd4 {[%emt 0:00:02]} 8. cxd4 {[%emt 0:00:02]} O-O {[%emt 0:00:02]} 9. d5 {[%emt 0:00:08]} Nb8 {[%emt 0:00:21][%cal Bc6b8,Bb8d7,Bd7e5,Be5c4,Bc4a3][%mdl 32]} 10. Nc3 {[%emt 0:00:05]} Bg4 {[%emt 0:00:10]} 11. h3 {[%emt 0:00:01]} Bxf3 {[%emt 0:00:01]} 12. Qxf3 {[%emt 0:00:01]} a6 {[%emt 0:00:03] [#]} 13. Be2 $146 {[%emt 0:00:12]} ({Predecessor:} 13. Bd3 Nbd7 14. Qe2 b5 15. Be3 Qa5 16. Qd2 Nc5 17. Bxc5 dxc5 18. a4 Qb4 19. Qc2 {0-1 (33) Tochor,J (2050)-Vachal,J (2170) Czech Republic 2002}) 13... Nbd7 {[%emt 0:00:01]} 14. a4 {[%emt 0:00:12]} Rc8 {[%emt 0:00:05][%cal Ba8c8,Bc8c3,Bc3b3][%mdl 32]} 15. Rb1 {[%emt 0:00:26]} Ne5 {[%emt 0:00:13]} 16. Qg3 {[%emt 0:00:04]} Nc4 {[%emt 0:00:26]} 17. f4 {[%emt 0:00:11]} (17. b3 $11 Ne5 18. Qe3) 17... Nd7 {[%emt 0:00:11][%cal Bf6d7,Bd7c5,Bc5b3][%mdl 32]} 18. Kh1 {[%emt 0:00:08] [#]} Na3 $1 {[%emt 0:00:09]} 19. bxa3 {[%emt 0:00:10] Bd2 is the strong threat.} (19. Ra1 Nc2) 19... Rxc3 {[%emt 0:00:02]} 20. Qe1 {[%emt 0:00:09]} Nc5 {[%emt 0:00:09][%csl LRa4,LRe4]} 21. e5 {[%emt 0:00:10]} Rb3 {[%emt 0:00:15]} (21... Nxa4 22. Bd1 Rxc1 23. Rxc1 $14) 22. Rxb3 {[%emt 0:00:19]} Nxb3 {[%emt 0:00:01]} 23. Bb2 $1 {[%emt 0:00:04]} Nc5 {[%emt 0:00:08]} (23... dxe5 {with more complications.} 24. Qb4 Nd4 25. Bxd4 a5) 24. Qb4 {[%emt 0:00:06]} b6 {[%emt 0:00:39] Inhibits a5.} 25. Rd1 {[%emt 0:00:14]} Qd7 {[%emt 0:00:01]} 26. Ba1 {[%emt 0:00:16]} Rb8 {[%emt 0:00:05]} (26... a5 {looks sharper.} 27. Qxb6 Qxa4 28. exd6 exd6 29. Bxg7 Kxg7 30. Qxd6 Ne4) 27. a5 {[%emt 0:00:13]} Qc7 {[%emt 0:00:07]} 28. exd6 {[%emt 0:00:22]} (28. axb6 $11 Rxb6 29. Qc4) 28... exd6 $15 {[%emt 0:00:03]} 29. Bxg7 {[%emt 0:00:01]} Kxg7 {[%emt 0:00:01]} 30. Qd4+ {[%emt 0:00:04]} Kg8 {[%emt 0:00:02]} 31. axb6 {[%emt 0:00:02]} Qxb6 {[%emt 0:00:04]} 32. f5 {[%emt 0:00:06]} Qb2 {[%emt 0:00:02]} 33. Bf3 {[%emt 0:00:04] [#]} (33. Qe3 $11 {remains equal.}) 33... Qxd4 $1 $17 {[%emt 0:00:02]} ({Inferior is} 33... gxf5 34. Bh5 $17) ({Worse is} 33... Qxa3 34. Qf4 Nd7 35. Be2 $17) 34. Rxd4 {[%emt 0:00:01][%mdl 4096] Endgame KRB-KRN} Kg7 {[%emt 0:00:01]} ({Not} 34... gxf5 35. Rf4 $15) 35. fxg6 {[%emt 0:00:02]} hxg6 {[%emt 0:00:01]} (35... fxg6 $17 36. Kh2 a5) 36. h4 {[%emt 0:00:02]} ({White should try} 36. Rb4 $15 Rxb4 37. axb4) 36... Rb3 {[%emt 0:00:02]} ({Better is} 36... Rb1+ $17 37. Kh2 a5) 37. Rb4 $1 $15 {[%emt 0:00:02]} Rxb4 {[%emt 0:00:04]} 38. axb4 {[%emt 0:00:01] KB-KN. The position is equal.} Nd3 {[%emt 0:00:01]} 39. b5 {[%emt 0:00:02]} axb5 {[%emt 0:00:04]} 40. Be2 {[%emt 0:00:01]} Nf4 {[%emt 0:00:06]} 41. Bxb5 {[%emt 0:00:01]} Nxd5 {[%emt 0:00:01]} 42. g3 {[%emt 0:00:04]} Nc3 {[%emt 0:00:05]} 43. Bc6 {[%emt 0:00:03]} Kf6 {[%emt 0:00:06]} 44. Kg2 {[%emt 0:00:01]} Ke5 {[%emt 0:00:06]} 45. Kf3 {[%emt 0:00:02]} d5 {[%emt 0:00:05]} 46. Be8 {[%emt 0:00:02]} Ke6 {[%emt 0:00:01]} 47. g4 {[%emt 0:00:03]} Ne4 {[%emt 0:00:01]} (47... Ke7 $5 48. Bc6 $8 d4 $11) 48. Bc6 {[%emt 0:00:03]} Nf6 {[%emt 0:00:01]} 49. Kf4 {[%emt 0:00:01]} d4 {[%emt 0:00:06]} 50. Ba4 {[%emt 0:00:03]} (50. Bf3 {keeps more tension.} d3 51. h5 d2 52. Ke3) 50... Nd5+ {[%emt 0:00:01]} 51. Kf3 {[%emt 0:00:01]} Ke5 {[%emt 0:00:03]} 52. Be8 {[%emt 0:00:01]} Kf6 {[%emt 0:00:02]} 53. h5 {[%emt 0:00:02]} gxh5 {[%emt 0:00:02]} 54. gxh5 {[%emt 0:00:01]} Kg7 {[%emt 0:00:01]} 55. h6+ $1 {[%emt 0:00:02]} Kxh6 {[%emt 0:00:02] Hoping for ...f5.} 56. Bxf7 {[%emt 0:00:00]} Nf6 {[%emt 0:00:01]} 57. Bc4 {Weighted Error Value: White=0.12 (very precise) /Black=0.08 (flawless)} 1/2-1/2

[Event "Susha Chess Blitz 2022"]
[Site "Shusha"]
[Date "2022.09.24"]
[Round "1"]
[White "Yilmaz, Mustafa"]
[Black "Vidit, Santosh Gujrathi"]
[Result "1-0"]
[ECO "E11"]
[WhiteElo "2633"]
[BlackElo "2710"]
[Annotator "TA"]
[PlyCount "73"]
[EventDate "2022.09.24"]
[EventType "tourn"]
[EventCountry "AZE"]
[SourceTitle "playchess.com"]
[Source "ChessBase"]
[SourceQuality "1"]
[TimeControl "180+2"]

{[%evp 9,73,24,32,19,23,9,26,-20,-18,-11,12,-25,40,31,53,48,70,37,41,37,138,77,69,64,110,73,177,163,257,244,245,235,242,243,257,219,811,670,612,322,645,534,967,959,967,952,962,972,931,926,922,906,913,882,1367,1167,1422,1206,1109,1087,1674,1671,1578,1552,1840,1725]} 1. d4 {[%emt 0:00:01]} Nf6 {[%emt 0:00:01]} 2. c4 {[%emt 0:00:01]} e6 {[%emt 0:00:01]} 3. Nf3 {[%emt 0:00:01]} Bb4+ {[%emt 0:00:01]} 4. Nbd2 {[%emt 0:00:08]} Be7 {[%emt 0:00:01]} 5. e4 {[%emt 0:00:08]} d5 {[%emt 0:00:01]} 6. e5 {[%emt 0:00:18] E11: Bogo-Indian.} Nfd7 {[%emt 0:00:01]} 7. cxd5 {[%emt 0:00:03]} exd5 {[%emt 0:00:01] [#]} 8. Nb3 $146 {[%emt 0:00:08]} (8. Bd3 $142) ({Predecessor:} 8. Bd3 c5 9. O-O Nc6 10. Re1 O-O 11. Bc2 cxd4 12. Nb3 Nb4 13. Bb1 d3 14. a3 {1-0 (53) Murshed,N (2404)-Delgado Ramirez,N (2622) Krasnaya Polyana 2021}) 8... a5 $11 {[%emt 0:00:14]} 9. a4 {[%emt 0:00:23]} b6 {[%emt 0:00:30]} 10. Bd3 {[%emt 0:00:09][%cal Bf1d3,Bd3b5,Bb5d7][%mdl 32]} c5 {[%emt 0:00:11]} ({Black should try} 10... Na6 $11) 11. Bb5 {[%emt 0:00:06] Threatens to win with dxc5.} Bb7 {[%emt 0:00:18]} 12. O-O {[%emt 0:00:24][%cal Oe5e6]} O-O {[%emt 0:00:02]} 13. Re1 {[%emt 0:00:01]} Na6 {[%emt 0:00:16]} 14. dxc5 $1 {[%emt 0:00:02]} bxc5 {[%emt 0:00:05] [#]} (14... Ndxc5 $14 15. Nbd4 Nc7) 15. Nxa5 $1 {[%emt 0:00:07][%mdl 512] White is much more active.} Qxa5 $16 {[%emt 0:00:04]} 16. Bxd7 {[%emt 0:00:01]} d4 {[%emt 0:00:09] Black is on the road to losing.} (16... Nc7 $14) 17. e6 {[%emt 0:00:02]} f6 {[%emt 0:00:10]} (17... Bxf3 $16 {was necessary.} 18. gxf3 Nc7) 18. Nh4 $18 {[%emt 0:00:07] Black must now prevent Nf5.} g6 {[%emt 0:00:05] Prevents Nf5.} (18... f5 {was called for.}) 19. Bh6 {[%emt 0:00:02][%cal Oh4g6] Hoping for Nxg6!} f5 {[%emt 0:00:11]} 20. Nf3 {[%emt 0:00:24]} Nb4 {[%emt 0:00:01]} 21. Ne5 {[%emt 0:00:02]} Qc7 {[%emt 0:00:04]} 22. Ra3 {[%emt 0:00:04][%cal Od1h5,Ba1a3,Ba3g3,Bg3g4,Bg4f4][%mdl 32] aiming for Qh5!} f4 $2 {[%emt 0:00:10]} (22... Be4) 23. Qg4 {[%emt 0:00:06] Intending Nxg6 and mate.} Rf6 {[%emt 0:00:04]} 24. Bxf4 {[%emt 0:00:10]} Nc2 $2 {[%emt 0:00:10] [#]} (24... Nd5) 25. Rg3 $1 {[%emt 0:00:18][%cal Re5g6] Nxg6! is the strong threat. White is clearly winning.} Nxe1 {[%emt 0:00:25] [#]} (25... Qa5 26. Rd1) 26. Nxg6 {[%emt 0:00:03][%mdl 512]} Rxg6 {[%emt 0:00:01]} 27. Bxc7 {[%emt 0:00:01] Qf5 would kill now.} Rxg4 {[%emt 0:00:05]} 28. Rxg4+ {[%emt 0:00:01]} Kf8 {[%emt 0:00:01]} 29. Bf4 {[%emt 0:00:10][%cal Rf4h6,Bc7f4,Bf4d6,Bd6e7,Be7c5][%mdl 32]} Bf6 {[%emt 0:00:25]} 30. Bd6+ {[%emt 0:00:01]} Be7 {[%emt 0:00:01]} 31. Rf4+ {[%emt 0:00:00]} Kg7 {[%emt 0:00:01]} 32. Bxe7 {[%emt 0:00:01]} d3 {[%emt 0:00:04]} 33. Rg4+ {[%emt 0:00:05]} Kh6 {[%emt 0:00:00]} 34. Bxc5 {[%emt 0:00:04] White wants to mate with Be3+.} Kh5 {[%emt 0:00:07]} 35. e7 {[%emt 0:00:03] White threatens Rg3 and mate.} d2 {[%emt 0:00:03]} 36. Rd4 {[%emt 0:00:03]} Rg8 {[%emt 0:00:04]} 37. e8=Q+ {[%emt 0:00:02] Weighted Error Value: White=0.56/Black=0.66} 1-0